{"text_format":"1","workbook":"xlsx","n_sheets":6,"sheets":["identificacion","Instrucciones","lista botiquin Antidotos","Consulta situacion del botiquin","Ghost","Sit"],"not_rendered":{"charts":0,"images":6,"macros":1,"external_links":0,"defined_names":4,"comments":0,"pivot_tables":0},"unopened":[],"bounds":{"document_bytes":16777216,"sheet_cells":100000,"rows_first":2000,"rows_last":500,"rows_between":2000,"halvings":0,"cell_chars":16384,"cell_head_chars":4096},"cells_cut":0,"cells_raw":0,"read":"whole","date_system":"1900"}

{"sheet":"identificacion","index":0,"n_rows":36,"n_cols":11,"rows_kept":36,"cut":false,"hidden":false,"merged":[[13,2,13,9],[23,8,23,9],[23,2,23,3],[9,3,9,4],[9,5,9,6],[0,1,0,10],[6,7,6,10],[6,1,6,6],[7,1,7,6],[1,1,1,10],[2,3,2,10],[3,3,3,5],[3,7,3,10],[4,1,4,4],[4,5,4,10],[5,3,5,10],[2,1,2,2],[7,7,7,10],[3,1,3,2],[5,1,5,2]]}
[null,"CONTROL DEL CONTENIDO DEL BOTIQUÍN de ANTÍDOTOS"]
[null,"DATOS IDENTIFICATIVOS DEL BUQUE"]
[null,"Nombre del Buque",null,""]
[null,"Matrícula",null,"",null,null,"N.I.B.",""]
[null,"Nombre del propietario o empresa armadora",null,null,null,""]
[null,"Puerto base",null,""]
[null,"Nombre y apellidos del Responsable Sanitario a Bordo (RSB)",null,null,null,null,null,""]
[null,"D.N.I./N.I.E./Pasaporte del Responsable Sanitario a Bordo (RSB)",null,null,null,null,null,""]
[]
[null,null,null,"fecha del control:"]
[]
[]
[]
[null,null,"Observaciones del responsable de la revisión (ISM)"]
[]
[]
[]
[]
[]
[]
[]
[]
[]
[null,null,"Firma del responsable sanitario a bordo (RSB)",null,null,null,null,null,"Firma y Sello del responsable de la revisión"]
[]
[]
[]
[]
[]
[]
[]
[]
[]
[]
[]
[null,null,null,null,null,"- 1 -",null,null,null,null,"Orden PRE/2315/2015"]

{"sheet":"Instrucciones","index":1,"n_rows":0,"n_cols":0,"rows_kept":0,"cut":false,"hidden":false,"merged":[]}

{"sheet":"lista botiquin Antidotos","index":2,"n_rows":33,"n_cols":7,"rows_kept":33,"cut":false,"hidden":false,"merged":[[25,3,25,6],[32,5,32,6],[16,0,16,6],[2,0,2,6],[3,3,3,4],[17,0,17,6],[18,3,18,4],[23,0,23,6],[0,0,0,1],[0,3,0,6],[1,0,1,1],[1,2,1,3],[1,5,1,6]]}
[{"$f":"IF(+identificacion!$D$3<>\"\",+identificacion!$D$3,\"\")","v":""},null,null,{"$f":"IF(+identificacion!$F$5<>\"\",+identificacion!$F$5,\"\")","v":""}]
[{"$f":"CONCATENATE(\"Matrícula: \",+identificacion!D4,\"  -     \",\"N.I.B.: \",+identificacion!H4)","v":"Matrícula:   -     N.I.B.: "},null,null,null,null,{"$f":"IF(+identificacion!$F$10<>\"\",+identificacion!$F$10,\"\")","v":""}]
["REVISIÓN DEL BOTIQUÍN  de ANTÍDOTOS GENERALES"]
["CÓDIGO ATC","PRINCIPIO ACTIVO","PRESENTACIÓN","Cantidad Exigida",null,"Cantidad a Bordo","CADUCIDAD"]
["C03CA01","FUROSEMIDA","2 mg.  5 ampollas",2,"envases"]
["B02BA01","FITOMENADIONA","10 mg. 5 ampollas",2,"envases"]
["A03FA01","METOCLOPRAMIDA","10 mg.  12 ampollas",2,"envases"]
["A07BA01","CARBÓN ACTIVADO","Frascos de granulado 25 g.",10,"envases"]
["N02BE01","PARACETAMOL","500 mg.  20 comprimidos",2,"envases"]
["R06AD02","PROMETAZINA","25 mg.  10 ampollas de 1 ml.",2,"envases"]
["R06AB02","DEXCLORFENIRAMINA","5 mg.  5 ampollas",2,"envases"]
["R03CC02","SALBUTAMOL","Aerosol inhalador 100 mcg/dosis (200 dosis)",2,"envases"]
["R03BA01","BECLOMETASONA","50 mcg/puls aero 200 dosis",1,"envase"]
["J01CA04","OXIGENO *","Botella 40 litros /200 bar con flujómetro de dos puertos",1,"unidad"]
["J01CA04","OXIGENO *","Botella 2 litros (repuesto del equipo de oxigenoterapia portátil)",1,"unidad"]
["S01AA12","TOBRAMICINA","Colirio",2,"envases"]
["(*) Sólo en botiquines A ó B"]
["REVISIÓN DEL BOTIQUÍN  de ANTÍDOTOS ESPECÍFICOS"]
["CÓDIGO ATC","PRINCIPIO ACTIVO","PRESENTACIÓN","Cantidad Exigida",null,"Cantidad a Bordo","CADUCIDAD"]
["A12AA03","GLUCONATO DE CALCIO 2%","Crema de 25 g.",5,"envases"]
[null,"AZUL DE METILENO al 1%","Ampollas bebibles de 10 ml.",15,"ampollas"]
[null,"ALCOHOL ETÍLICO al 10%","Solución de 500 ml.",2,"envases"]
[null,"SULFATO DE ATROPINA","Ampollas 1 mg. 10 ampollas",1,"envase"]
[]
[]
[null,"Firma del responsable de sanitario a bordo",null,"Firma y Sello del responsable de la revisión"]
[null,{"$f":"IF(+identificacion!$H$7<>\"\",+identificacion!$H$7,\"\")","v":""}]
[]
[]
[]
[]
[]
["Orden PRE/2315/2015",null,"- 2 -",null,null,{"$f":"CONCATENATE(\"Fecha de impresión: \",+DAY(TODAY()),\"/\",MONTH(TODAY()),\"/\",YEAR(TODAY()))","v":"Fecha de impresión: 20/5/2016"}]

{"sheet":"Consulta situacion del botiquin","index":3,"n_rows":24,"n_cols":9,"rows_kept":24,"cut":false,"hidden":false,"merged":[[0,0,0,1],[1,0,1,1],[0,2,0,5],[1,3,1,5]]}
[{"$f":"IF(+identificacion!$D$3<>\"\",+identificacion!$D$3,\"\")","v":""},null,{"$f":"IF(+identificacion!$F$5<>\"\",+identificacion!$F$5,\"\")","v":""}]
[{"$f":"CONCATENATE(\"Matrícula: \",+identificacion!$D$4,\"  -     N.I.B.: \",+identificacion!$H$4)","v":"Matrícula:   -     N.I.B.: "},null,null,{"$f":"IF(identificacion!F10=\"\",\"\",CONCATENATE(\"Fecha del control:  \",+DAY(identificacion!$F$10),\"/\",MONTH(identificacion!$F$10),\"/\",YEAR(identificacion!$F$10),\"   -   \",\"Fecha de impresión: \",+DAY(TODAY()),\"/\",MONTH(TODAY()),\"/\",YEAR(TODAY())))","v":""}]
[]
["ANTÍDOTOS GENERALES"]
["PRINCIPIO ACTIVO","PRESENTACIÓN","Control fechas","CADUCIDAD","Estado de la dotación","Nº Uds. a REPONER"]
[{"$f":"+Ghost!B2","v":"FUROSEMIDA"},{"$f":"+Ghost!C2","v":"2 mg.  5 ampollas"},{"$f":"+Ghost!H2","v":"sin fecha de caducidad"},{"$f":"+Ghost!G2","v":""},{"$f":"+Ghost!L2","v":"cantidad sin cumplimentar"},null,null,{"$f":"+Ghost!D2","v":2}]
[{"$f":"+Ghost!B3","v":"FITOMENADIONA"},{"$f":"+Ghost!C3","v":"10 mg. 5 ampollas"},{"$f":"+Ghost!H3","v":"sin fecha de caducidad"},{"$f":"+Ghost!G3","v":""},{"$f":"+Ghost!L3","v":"cantidad sin cumplimentar"},null,null,{"$f":"+Ghost!D3","v":2}]
[{"$f":"+Ghost!B4","v":"METOCLOPRAMIDA"},{"$f":"+Ghost!C4","v":"10 mg.  12 ampollas"},{"$f":"+Ghost!H4","v":"sin fecha de caducidad"},{"$f":"+Ghost!G4","v":""},{"$f":"+Ghost!L4","v":"cantidad sin cumplimentar"},null,null,{"$f":"+Ghost!D4","v":2}]
[{"$f":"+Ghost!B5","v":"CARBÓN ACTIVADO"},{"$f":"+Ghost!C5","v":"Frascos de granulado 25 g."},{"$f":"+Ghost!H5","v":"sin fecha de caducidad"},{"$f":"+Ghost!G5","v":""},{"$f":"+Ghost!L5","v":"cantidad sin cumplimentar"},null,null,{"$f":"+Ghost!D5","v":10}," "]
[{"$f":"+Ghost!B6","v":"PARACETAMOL"},{"$f":"+Ghost!C6","v":"500 mg.  20 comprimidos"},{"$f":"+Ghost!H6","v":"sin fecha de caducidad"},{"$f":"+Ghost!G6","v":""},{"$f":"+Ghost!L6","v":"cantidad sin cumplimentar"},null,null,{"$f":"+Ghost!D6","v":2}]
[{"$f":"+Ghost!B7","v":"PROMETAZINA"},{"$f":"+Ghost!C7","v":"25 mg.  10 ampollas de 1 ml."},{"$f":"+Ghost!H7","v":"sin fecha de caducidad"},{"$f":"+Ghost!G7","v":""},{"$f":"+Ghost!L7","v":"cantidad sin cumplimentar"},null,null,{"$f":"+Ghost!D7","v":2}]
[{"$f":"+Ghost!B8","v":"DEXCLORFENIRAMINA"},{"$f":"+Ghost!C8","v":"5 mg.  5 ampollas"},{"$f":"+Ghost!H8","v":"sin fecha de caducidad"},{"$f":"+Ghost!G8","v":""},{"$f":"+Ghost!L8","v":"cantidad sin cumplimentar"},null,null,{"$f":"+Ghost!D8","v":2}]
[{"$f":"+Ghost!B9","v":"SALBUTAMOL"},{"$f":"+Ghost!C9","v":"Aerosol inhalador 100 mcg/dosis (200 dosis)"},{"$f":"+Ghost!H9","v":"sin fecha de caducidad"},{"$f":"+Ghost!G9","v":""},{"$f":"+Ghost!L9","v":"cantidad sin cumplimentar"},null,null,{"$f":"+Ghost!D9","v":2}]
[{"$f":"+Ghost!B10","v":"BECLOMETASONA"},{"$f":"+Ghost!C10","v":"50 mcg/puls aero 200 dosis"},{"$f":"+Ghost!H10","v":"sin fecha de caducidad"},{"$f":"+Ghost!G10","v":""},{"$f":"+Ghost!L10","v":"cantidad sin cumplimentar"},null,null,{"$f":"+Ghost!D10","v":1}]
[{"$f":"+Ghost!B11","v":"OXIGENO *"},{"$f":"+Ghost!C11","v":"Botella 40 litros /200 bar con flujómetro de dos puertos"},{"$f":"+Ghost!H11","v":"sin fecha de caducidad"},{"$f":"+Ghost!G11","v":""},{"$f":"+Ghost!L11","v":"cantidad sin cumplimentar"},null,null,{"$f":"+Ghost!D11","v":1}]
[{"$f":"+Ghost!B12","v":"OXIGENO *"},{"$f":"+Ghost!C12","v":"Botella 2 litros (repuesto del equipo de oxigenoterapia portátil)"},{"$f":"+Ghost!H12","v":"sin fecha de caducidad"},{"$f":"+Ghost!G12","v":""},{"$f":"+Ghost!L12","v":"cantidad sin cumplimentar"},null,null,{"$f":"+Ghost!D12","v":1}]
[{"$f":"+Ghost!B13","v":"TOBRAMICINA"},{"$f":"+Ghost!C13","v":"Colirio"},{"$f":"+Ghost!H13","v":"sin fecha de caducidad"},{"$f":"+Ghost!G13","v":""},{"$f":"+Ghost!L13","v":"cantidad sin cumplimentar"},null,null,{"$f":"+Ghost!D13","v":2}]
["(*) Sólo en botiquines A ó B"]
["ANTÍDOTOS ESPECÍFICOS"]
["PRINCIPIO ACTIVO","PRESENTACIÓN","Control fechas","CADUCIDAD","Estado de la dotación","Nº Uds. a REPONER"]
[{"$f":"+Ghost!B14","v":"GLUCONATO DE CALCIO 2%"},{"$f":"+Ghost!C14","v":"Crema de 25 g."},{"$f":"+Ghost!H14","v":"sin fecha de caducidad"},{"$f":"+Ghost!G14","v":""},{"$f":"+Ghost!L14","v":"cantidad sin cumplimentar"},null,null,{"$f":"+Ghost!D14","v":5}]
[{"$f":"+Ghost!B15","v":"AZUL DE METILENO al 1%"},{"$f":"+Ghost!C15","v":"Ampollas bebibles de 10 ml."},{"$f":"+Ghost!H15","v":"sin fecha de caducidad"},{"$f":"+Ghost!G15","v":""},{"$f":"+Ghost!L15","v":"cantidad sin cumplimentar"},null,null,{"$f":"+Ghost!D15","v":15}]
[{"$f":"+Ghost!B16","v":"ALCOHOL ETÍLICO al 10%"},{"$f":"+Ghost!C16","v":"Solución de 500 ml."},{"$f":"+Ghost!H16","v":"sin fecha de caducidad"},{"$f":"+Ghost!G16","v":""},{"$f":"+Ghost!L16","v":"cantidad sin cumplimentar"},null,null,{"$f":"+Ghost!D16","v":2}]
[{"$f":"+Ghost!B17","v":"SULFATO DE ATROPINA"},{"$f":"+Ghost!C17","v":"Ampollas 1 mg. 10 ampollas"},{"$f":"+Ghost!H17","v":"sin fecha de caducidad"},{"$f":"+Ghost!G17","v":""},{"$f":"+Ghost!L17","v":"cantidad sin cumplimentar"},null,null,{"$f":"+Ghost!D17","v":1}]

{"sheet":"Ghost","index":4,"n_rows":17,"n_cols":23,"rows_kept":17,"cut":false,"hidden":true,"merged":[]}
["CODIGO ATC","PRINCIPIO ACTIVO","PRESENTACION","ce0","ce_ud0","cab0","CADUCIDAD","Control","ce_menos_cab","Estado de la dotación","Aux01existencias","Existencias","id","ce","ce_ud","cab","ud_rep","f_cadu","orden","codigo","PA_MS","Presenta","observa"]
[{"$f":"IF(+'lista botiquin Antidotos'!A5<>\"\",+'lista botiquin Antidotos'!A5,\"\")","v":"C03CA01"},{"$f":"IF(+'lista botiquin Antidotos'!B5<>\"\",+'lista botiquin Antidotos'!B5,\"\")","v":"FUROSEMIDA"},{"$f":"IF(+'lista botiquin Antidotos'!C5<>\"\",+'lista botiquin Antidotos'!C5,\"\")","v":"2 mg.  5 ampollas"},{"$f":"IF(+'lista botiquin Antidotos'!D5<>\"\",+'lista botiquin Antidotos'!D5,\"\")","v":2},{"$f":"IF(+'lista botiquin Antidotos'!E5<>\"\",+'lista botiquin Antidotos'!E5,\"\")","v":"envases"},{"$f":"+'lista botiquin Antidotos'!F5","v":0},{"$f":"IF(+'lista botiquin Antidotos'!G5<>\"\",+'lista botiquin Antidotos'!G5,\"\")","v":""},{"$f":"IF(+G2=\"\",Sit!$B$1,IF(TODAY()>=Ghost!G2,+Sit!$B$2,IF(TODAY()>=Ghost!G2-30,Sit!$B$3,Sit!$B$4)))","v":"sin fecha de caducidad"},{"$f":"+D2-F2","v":2},{"$f":"CONCATENATE(L2,\"  --> \",H2)","v":"cantidad sin cumplimentar  --> sin fecha de caducidad"},{"$f":"IF('lista botiquin Antidotos'!F5=\"\",\"cantidad sin cumplimentar\",\n\nIF(I2=0,\"cantidad exigida\",\n\nIF(I2=1,\"falta1ud\",\n\nIF(I2>1,\"faltanuds\",\n\nIF(I2<0,\"dotación con excedentes\",\"VER\" )))))","v":"cantidad sin cumplimentar"},{"$f":"IF(AND(K2=\"falta1ud\",F2=0), CONCATENATE(\"sin existencias /\"&\" falta \"&+I2& \" unidad\"),\nIF(AND(K2=\"falta1ud\",F2=1), CONCATENATE(\"queda \"&+F2&\" unidad /\"&\" falta \"&+I2& \" unidad\"),\nIF(AND(K2=\"falta1ud\",F2>1), CONCATENATE(\"quedan \"&+F2&\" unidades /\"&\" falta \"&+I2& \" unidad\"),\nIF(AND(K2=\"faltanuds\",F2=0),CONCATENATE(\"sin existencias /\"&\" faltan \"&+I2& \" unidades\"),\nIF(AND(K2=\"faltanuds\",F2=1),CONCATENATE(\"queda \"&+F2&\" unidad /\"&\" faltan \"&+I2& \" unidades\"),\nIF(AND(K2=\"faltanuds\",F2>1),CONCATENATE(\"quedan \"&+F2&\" unidades /\"&\" faltan \"&+I2& \" unidades\"),\n+K2))))))","v":"cantidad sin cumplimentar"},"CAG01",2,"envases",{"$f":"+F2","v":0},{"$f":"+'Consulta situacion del botiquin'!F6","v":0},{"$f":"+G2","v":""},1,"C03CA01","FUROSEMIDA","2 mg.  5 ampollas"]
[{"$f":"IF(+'lista botiquin Antidotos'!A6<>\"\",+'lista botiquin Antidotos'!A6,\"\")","v":"B02BA01"},{"$f":"IF(+'lista botiquin Antidotos'!B6<>\"\",+'lista botiquin Antidotos'!B6,\"\")","v":"FITOMENADIONA"},{"$f":"IF(+'lista botiquin Antidotos'!C6<>\"\",+'lista botiquin Antidotos'!C6,\"\")","v":"10 mg. 5 ampollas"},{"$f":"IF(+'lista botiquin Antidotos'!D6<>\"\",+'lista botiquin Antidotos'!D6,\"\")","v":2},{"$f":"IF(+'lista botiquin Antidotos'!E6<>\"\",+'lista botiquin Antidotos'!E6,\"\")","v":"envases"},{"$f":"+'lista botiquin Antidotos'!F6","v":0},{"$f":"IF(+'lista botiquin Antidotos'!G6<>\"\",+'lista botiquin Antidotos'!G6,\"\")","v":""},{"$f":"IF(+G3=\"\",Sit!$B$1,IF(TODAY()>=Ghost!G3,+Sit!$B$2,IF(TODAY()>=Ghost!G3-30,Sit!$B$3,Sit!$B$4)))","v":"sin fecha de caducidad"},2,{"$f":"CONCATENATE(L3,\"  --> \",H3)","v":"cantidad sin cumplimentar  --> sin fecha de caducidad"},{"$f":"IF('lista botiquin Antidotos'!F6=\"\",\"cantidad sin cumplimentar\",\n\nIF(I3=0,\"cantidad exigida\",\n\nIF(I3=1,\"falta1ud\",\n\nIF(I3>1,\"faltanuds\",\n\nIF(I3<0,\"dotación con excedentes\",\"VER\" )))))","v":"cantidad sin cumplimentar"},{"$f":"IF(AND(K3=\"falta1ud\",F3=0), CONCATENATE(\"sin existencias /\"&\" falta \"&+I3& \" unidad\"),\nIF(AND(K3=\"falta1ud\",F3=1), CONCATENATE(\"queda \"&+F3&\" unidad /\"&\" falta \"&+I3& \" unidad\"),\nIF(AND(K3=\"falta1ud\",F3>1), CONCATENATE(\"quedan \"&+F3&\" unidades /\"&\" falta \"&+I3& \" unidad\"),\nIF(AND(K3=\"faltanuds\",F3=0),CONCATENATE(\"sin existencias /\"&\" faltan \"&+I3& \" unidades\"),\nIF(AND(K3=\"faltanuds\",F3=1),CONCATENATE(\"queda \"&+F3&\" unidad /\"&\" faltan \"&+I3& \" unidades\"),\nIF(AND(K3=\"faltanuds\",F3>1),CONCATENATE(\"quedan \"&+F3&\" unidades /\"&\" faltan \"&+I3& \" unidades\"),\n+K3))))))","v":"cantidad sin cumplimentar"},"CAG02",2,"envases",{"$f":"+F3","v":0},{"$f":"+'Consulta situacion del botiquin'!F7","v":0},{"$f":"+G3","v":""},2,"B02BA01","FITOMENADIONA","10 mg. 5 ampollas"]
[{"$f":"IF(+'lista botiquin Antidotos'!A7<>\"\",+'lista botiquin Antidotos'!A7,\"\")","v":"A03FA01"},{"$f":"IF(+'lista botiquin Antidotos'!B7<>\"\",+'lista botiquin Antidotos'!B7,\"\")","v":"METOCLOPRAMIDA"},{"$f":"IF(+'lista botiquin Antidotos'!C7<>\"\",+'lista botiquin Antidotos'!C7,\"\")","v":"10 mg.  12 ampollas"},{"$f":"IF(+'lista botiquin Antidotos'!D7<>\"\",+'lista botiquin Antidotos'!D7,\"\")","v":2},{"$f":"IF(+'lista botiquin Antidotos'!E7<>\"\",+'lista botiquin Antidotos'!E7,\"\")","v":"envases"},{"$f":"+'lista botiquin Antidotos'!F7","v":0},{"$f":"IF(+'lista botiquin Antidotos'!G7<>\"\",+'lista botiquin Antidotos'!G7,\"\")","v":""},{"$f":"IF(+G4=\"\",Sit!$B$1,IF(TODAY()>=Ghost!G4,+Sit!$B$2,IF(TODAY()>=Ghost!G4-30,Sit!$B$3,Sit!$B$4)))","v":"sin fecha de caducidad"},2,"cantidad sin cumplimentar  --> sin fecha de caducidad",{"$f":"IF('lista botiquin Antidotos'!F7=\"\",\"cantidad sin cumplimentar\",\n\nIF(I4=0,\"cantidad exigida\",\n\nIF(I4=1,\"falta1ud\",\n\nIF(I4>1,\"faltanuds\",\n\nIF(I4<0,\"dotación con excedentes\",\"VER\" )))))","v":"cantidad sin cumplimentar"},"cantidad sin cumplimentar","CAG03",2,"envases",0,{"$f":"+'Consulta situacion del botiquin'!F8","v":0},"",3,"A03FA01","METOCLOPRAMIDA","10 mg.  12 ampollas"]
[{"$f":"IF(+'lista botiquin Antidotos'!A8<>\"\",+'lista botiquin Antidotos'!A8,\"\")","v":"A07BA01"},{"$f":"IF(+'lista botiquin Antidotos'!B8<>\"\",+'lista botiquin Antidotos'!B8,\"\")","v":"CARBÓN ACTIVADO"},{"$f":"IF(+'lista botiquin Antidotos'!C8<>\"\",+'lista botiquin Antidotos'!C8,\"\")","v":"Frascos de granulado 25 g."},{"$f":"IF(+'lista botiquin Antidotos'!D8<>\"\",+'lista botiquin Antidotos'!D8,\"\")","v":10},{"$f":"IF(+'lista botiquin Antidotos'!E8<>\"\",+'lista botiquin Antidotos'!E8,\"\")","v":"envases"},{"$f":"+'lista botiquin Antidotos'!F8","v":0},{"$f":"IF(+'lista botiquin Antidotos'!G8<>\"\",+'lista botiquin Antidotos'!G8,\"\")","v":""},{"$f":"IF(+G5=\"\",Sit!$B$1,IF(TODAY()>=Ghost!G5,+Sit!$B$2,IF(TODAY()>=Ghost!G5-30,Sit!$B$3,Sit!$B$4)))","v":"sin fecha de caducidad"},10,"cantidad sin cumplimentar  --> sin fecha de caducidad",{"$f":"IF('lista botiquin Antidotos'!F8=\"\",\"cantidad sin cumplimentar\",\n\nIF(I5=0,\"cantidad exigida\",\n\nIF(I5=1,\"falta1ud\",\n\nIF(I5>1,\"faltanuds\",\n\nIF(I5<0,\"dotación con excedentes\",\"VER\" )))))","v":"cantidad sin cumplimentar"},"cantidad sin cumplimentar","CAG04",10,"envases",0,{"$f":"+'Consulta situacion del botiquin'!F9","v":0},"",4,"A07BA01","CARBÓN ACTIVADO","Frascos de granulado 25 g."]
[{"$f":"IF(+'lista botiquin Antidotos'!A9<>\"\",+'lista botiquin Antidotos'!A9,\"\")","v":"N02BE01"},{"$f":"IF(+'lista botiquin Antidotos'!B9<>\"\",+'lista botiquin Antidotos'!B9,\"\")","v":"PARACETAMOL"},{"$f":"IF(+'lista botiquin Antidotos'!C9<>\"\",+'lista botiquin Antidotos'!C9,\"\")","v":"500 mg.  20 comprimidos"},{"$f":"IF(+'lista botiquin Antidotos'!D9<>\"\",+'lista botiquin Antidotos'!D9,\"\")","v":2},{"$f":"IF(+'lista botiquin Antidotos'!E9<>\"\",+'lista botiquin Antidotos'!E9,\"\")","v":"envases"},{"$f":"+'lista botiquin Antidotos'!F9","v":0},{"$f":"IF(+'lista botiquin Antidotos'!G9<>\"\",+'lista botiquin Antidotos'!G9,\"\")","v":""},{"$f":"IF(+G6=\"\",Sit!$B$1,IF(TODAY()>=Ghost!G6,+Sit!$B$2,IF(TODAY()>=Ghost!G6-30,Sit!$B$3,Sit!$B$4)))","v":"sin fecha de caducidad"},2,"cantidad sin cumplimentar  --> sin fecha de caducidad",{"$f":"IF('lista botiquin Antidotos'!F9=\"\",\"cantidad sin cumplimentar\",\n\nIF(I6=0,\"cantidad exigida\",\n\nIF(I6=1,\"falta1ud\",\n\nIF(I6>1,\"faltanuds\",\n\nIF(I6<0,\"dotación con excedentes\",\"VER\" )))))","v":"cantidad sin cumplimentar"},"cantidad sin cumplimentar","CAG05",2,"envases",0,{"$f":"+'Consulta situacion del botiquin'!F10","v":0},"",5,"N02BE01","PARACETAMOL","500 mg.  20 comprimidos"]
[{"$f":"IF(+'lista botiquin Antidotos'!A10<>\"\",+'lista botiquin Antidotos'!A10,\"\")","v":"R06AD02"},{"$f":"IF(+'lista botiquin Antidotos'!B10<>\"\",+'lista botiquin Antidotos'!B10,\"\")","v":"PROMETAZINA"},{"$f":"IF(+'lista botiquin Antidotos'!C10<>\"\",+'lista botiquin Antidotos'!C10,\"\")","v":"25 mg.  10 ampollas de 1 ml."},{"$f":"IF(+'lista botiquin Antidotos'!D10<>\"\",+'lista botiquin Antidotos'!D10,\"\")","v":2},{"$f":"IF(+'lista botiquin Antidotos'!E10<>\"\",+'lista botiquin Antidotos'!E10,\"\")","v":"envases"},{"$f":"+'lista botiquin Antidotos'!F10","v":0},{"$f":"IF(+'lista botiquin Antidotos'!G10<>\"\",+'lista botiquin Antidotos'!G10,\"\")","v":""},{"$f":"IF(+G7=\"\",Sit!$B$1,IF(TODAY()>=Ghost!G7,+Sit!$B$2,IF(TODAY()>=Ghost!G7-30,Sit!$B$3,Sit!$B$4)))","v":"sin fecha de caducidad"},2,"cantidad sin cumplimentar  --> sin fecha de caducidad",{"$f":"IF('lista botiquin Antidotos'!F10=\"\",\"cantidad sin cumplimentar\",\n\nIF(I7=0,\"cantidad exigida\",\n\nIF(I7=1,\"falta1ud\",\n\nIF(I7>1,\"faltanuds\",\n\nIF(I7<0,\"dotación con excedentes\",\"VER\" )))))","v":"cantidad sin cumplimentar"},"cantidad sin cumplimentar","CAG06",2,"envases",0,{"$f":"+'Consulta situacion del botiquin'!F11","v":0},"",6,"R06AD02","PROMETAZINA","25 mg.  10 ampollas de 1 ml."]
[{"$f":"IF(+'lista botiquin Antidotos'!A11<>\"\",+'lista botiquin Antidotos'!A11,\"\")","v":"R06AB02"},{"$f":"IF(+'lista botiquin Antidotos'!B11<>\"\",+'lista botiquin Antidotos'!B11,\"\")","v":"DEXCLORFENIRAMINA"},{"$f":"IF(+'lista botiquin Antidotos'!C11<>\"\",+'lista botiquin Antidotos'!C11,\"\")","v":"5 mg.  5 ampollas"},{"$f":"IF(+'lista botiquin Antidotos'!D11<>\"\",+'lista botiquin Antidotos'!D11,\"\")","v":2},{"$f":"IF(+'lista botiquin Antidotos'!E11<>\"\",+'lista botiquin Antidotos'!E11,\"\")","v":"envases"},{"$f":"+'lista botiquin Antidotos'!F11","v":0},{"$f":"IF(+'lista botiquin Antidotos'!G11<>\"\",+'lista botiquin Antidotos'!G11,\"\")","v":""},{"$f":"IF(+G8=\"\",Sit!$B$1,IF(TODAY()>=Ghost!G8,+Sit!$B$2,IF(TODAY()>=Ghost!G8-30,Sit!$B$3,Sit!$B$4)))","v":"sin fecha de caducidad"},2,"cantidad sin cumplimentar  --> sin fecha de caducidad",{"$f":"IF('lista botiquin Antidotos'!F11=\"\",\"cantidad sin cumplimentar\",\n\nIF(I8=0,\"cantidad exigida\",\n\nIF(I8=1,\"falta1ud\",\n\nIF(I8>1,\"faltanuds\",\n\nIF(I8<0,\"dotación con excedentes\",\"VER\" )))))","v":"cantidad sin cumplimentar"},"cantidad sin cumplimentar","CAG07",2,"envases",0,{"$f":"+'Consulta situacion del botiquin'!F12","v":0},"",7,"R06AB02","DEXCLORFENIRAMINA","5 mg.  5 ampollas"]
[{"$f":"IF(+'lista botiquin Antidotos'!A12<>\"\",+'lista botiquin Antidotos'!A12,\"\")","v":"R03CC02"},{"$f":"IF(+'lista botiquin Antidotos'!B12<>\"\",+'lista botiquin Antidotos'!B12,\"\")","v":"SALBUTAMOL"},{"$f":"IF(+'lista botiquin Antidotos'!C12<>\"\",+'lista botiquin Antidotos'!C12,\"\")","v":"Aerosol inhalador 100 mcg/dosis (200 dosis)"},{"$f":"IF(+'lista botiquin Antidotos'!D12<>\"\",+'lista botiquin Antidotos'!D12,\"\")","v":2},{"$f":"IF(+'lista botiquin Antidotos'!E12<>\"\",+'lista botiquin Antidotos'!E12,\"\")","v":"envases"},{"$f":"+'lista botiquin Antidotos'!F12","v":0},{"$f":"IF(+'lista botiquin Antidotos'!G12<>\"\",+'lista botiquin Antidotos'!G12,\"\")","v":""},{"$f":"IF(+G9=\"\",Sit!$B$1,IF(TODAY()>=Ghost!G9,+Sit!$B$2,IF(TODAY()>=Ghost!G9-30,Sit!$B$3,Sit!$B$4)))","v":"sin fecha de caducidad"},2,"cantidad sin cumplimentar  --> sin fecha de caducidad",{"$f":"IF('lista botiquin Antidotos'!F12=\"\",\"cantidad sin cumplimentar\",\n\nIF(I9=0,\"cantidad exigida\",\n\nIF(I9=1,\"falta1ud\",\n\nIF(I9>1,\"faltanuds\",\n\nIF(I9<0,\"dotación con excedentes\",\"VER\" )))))","v":"cantidad sin cumplimentar"},"cantidad sin cumplimentar","CAG08",1,"envase",0,{"$f":"+'Consulta situacion del botiquin'!F13","v":0},"",8,"R03CC02","SALBUTAMOL","Aerosol inhalador 100 mcg/dosis (200 dosis)"]
[{"$f":"IF(+'lista botiquin Antidotos'!A13<>\"\",+'lista botiquin Antidotos'!A13,\"\")","v":"R03BA01"},{"$f":"IF(+'lista botiquin Antidotos'!B13<>\"\",+'lista botiquin Antidotos'!B13,\"\")","v":"BECLOMETASONA"},{"$f":"IF(+'lista botiquin Antidotos'!C13<>\"\",+'lista botiquin Antidotos'!C13,\"\")","v":"50 mcg/puls aero 200 dosis"},{"$f":"IF(+'lista botiquin Antidotos'!D13<>\"\",+'lista botiquin Antidotos'!D13,\"\")","v":1},{"$f":"IF(+'lista botiquin Antidotos'!E13<>\"\",+'lista botiquin Antidotos'!E13,\"\")","v":"envase"},{"$f":"+'lista botiquin Antidotos'!F13","v":0},{"$f":"IF(+'lista botiquin Antidotos'!G13<>\"\",+'lista botiquin Antidotos'!G13,\"\")","v":""},{"$f":"IF(+G10=\"\",Sit!$B$1,IF(TODAY()>=Ghost!G10,+Sit!$B$2,IF(TODAY()>=Ghost!G10-30,Sit!$B$3,Sit!$B$4)))","v":"sin fecha de caducidad"},1,"cantidad sin cumplimentar  --> sin fecha de caducidad",{"$f":"IF('lista botiquin Antidotos'!F13=\"\",\"cantidad sin cumplimentar\",\n\nIF(I10=0,\"cantidad exigida\",\n\nIF(I10=1,\"falta1ud\",\n\nIF(I10>1,\"faltanuds\",\n\nIF(I10<0,\"dotación con excedentes\",\"VER\" )))))","v":"cantidad sin cumplimentar"},"cantidad sin cumplimentar","CAG09",1,"envase",0,{"$f":"+'Consulta situacion del botiquin'!F14","v":0},"",9,"R03BA01","BECLOMETASONA","50 mcg/puls aero 200 dosis"]
[{"$f":"IF(+'lista botiquin Antidotos'!A14<>\"\",+'lista botiquin Antidotos'!A14,\"\")","v":"J01CA04"},{"$f":"IF(+'lista botiquin Antidotos'!B14<>\"\",+'lista botiquin Antidotos'!B14,\"\")","v":"OXIGENO *"},{"$f":"IF(+'lista botiquin Antidotos'!C14<>\"\",+'lista botiquin Antidotos'!C14,\"\")","v":"Botella 40 litros /200 bar con flujómetro de dos puertos"},{"$f":"IF(+'lista botiquin Antidotos'!D14<>\"\",+'lista botiquin Antidotos'!D14,\"\")","v":1},{"$f":"IF(+'lista botiquin Antidotos'!E14<>\"\",+'lista botiquin Antidotos'!E14,\"\")","v":"unidad"},{"$f":"+'lista botiquin Antidotos'!F14","v":0},{"$f":"IF(+'lista botiquin Antidotos'!G14<>\"\",+'lista botiquin Antidotos'!G14,\"\")","v":""},{"$f":"IF(+G11=\"\",Sit!$B$1,IF(TODAY()>=Ghost!G11,+Sit!$B$2,IF(TODAY()>=Ghost!G11-30,Sit!$B$3,Sit!$B$4)))","v":"sin fecha de caducidad"},1,"cantidad sin cumplimentar  --> sin fecha de caducidad",{"$f":"IF('lista botiquin Antidotos'!F14=\"\",\"cantidad sin cumplimentar\",\n\nIF(I11=0,\"cantidad exigida\",\n\nIF(I11=1,\"falta1ud\",\n\nIF(I11>1,\"faltanuds\",\n\nIF(I11<0,\"dotación con excedentes\",\"VER\" )))))","v":"cantidad sin cumplimentar"},"cantidad sin cumplimentar","CAG10",1,"unidad",0,{"$f":"+'Consulta situacion del botiquin'!F15","v":0},"",10,"J01CA04","OXIGENO *","Botella 40 litros /200 bar con flujómetro de dos puertos","Sólo en botiquines A ó B"]
[{"$f":"IF(+'lista botiquin Antidotos'!A15<>\"\",+'lista botiquin Antidotos'!A15,\"\")","v":"J01CA04"},{"$f":"IF(+'lista botiquin Antidotos'!B15<>\"\",+'lista botiquin Antidotos'!B15,\"\")","v":"OXIGENO *"},{"$f":"IF(+'lista botiquin Antidotos'!C15<>\"\",+'lista botiquin Antidotos'!C15,\"\")","v":"Botella 2 litros (repuesto del equipo de oxigenoterapia portátil)"},{"$f":"IF(+'lista botiquin Antidotos'!D15<>\"\",+'lista botiquin Antidotos'!D15,\"\")","v":1},{"$f":"IF(+'lista botiquin Antidotos'!E15<>\"\",+'lista botiquin Antidotos'!E15,\"\")","v":"unidad"},{"$f":"+'lista botiquin Antidotos'!F15","v":0},{"$f":"IF(+'lista botiquin Antidotos'!G15<>\"\",+'lista botiquin Antidotos'!G15,\"\")","v":""},{"$f":"IF(+G12=\"\",Sit!$B$1,IF(TODAY()>=Ghost!G12,+Sit!$B$2,IF(TODAY()>=Ghost!G12-30,Sit!$B$3,Sit!$B$4)))","v":"sin fecha de caducidad"},1,"cantidad sin cumplimentar  --> sin fecha de caducidad",{"$f":"IF('lista botiquin Antidotos'!F15=\"\",\"cantidad sin cumplimentar\",\n\nIF(I12=0,\"cantidad exigida\",\n\nIF(I12=1,\"falta1ud\",\n\nIF(I12>1,\"faltanuds\",\n\nIF(I12<0,\"dotación con excedentes\",\"VER\" )))))","v":"cantidad sin cumplimentar"},"cantidad sin cumplimentar","CAG11",1,"unidad",0,{"$f":"+'Consulta situacion del botiquin'!F16","v":0},"",11,"J01CA04","OXIGENO *","Botella 2 litros (repuesto del equipo de oxigenoterapia portátil)","Sólo en botiquines A ó B"]
[{"$f":"IF(+'lista botiquin Antidotos'!A16<>\"\",+'lista botiquin Antidotos'!A16,\"\")","v":"S01AA12"},{"$f":"IF(+'lista botiquin Antidotos'!B16<>\"\",+'lista botiquin Antidotos'!B16,\"\")","v":"TOBRAMICINA"},{"$f":"IF(+'lista botiquin Antidotos'!C16<>\"\",+'lista botiquin Antidotos'!C16,\"\")","v":"Colirio"},{"$f":"IF(+'lista botiquin Antidotos'!D16<>\"\",+'lista botiquin Antidotos'!D16,\"\")","v":2},{"$f":"IF(+'lista botiquin Antidotos'!E16<>\"\",+'lista botiquin Antidotos'!E16,\"\")","v":"envases"},{"$f":"+'lista botiquin Antidotos'!F16","v":0},{"$f":"IF(+'lista botiquin Antidotos'!G16<>\"\",+'lista botiquin Antidotos'!G16,\"\")","v":""},{"$f":"IF(+G13=\"\",Sit!$B$1,IF(TODAY()>=Ghost!G13,+Sit!$B$2,IF(TODAY()>=Ghost!G13-30,Sit!$B$3,Sit!$B$4)))","v":"sin fecha de caducidad"},2,"cantidad sin cumplimentar  --> sin fecha de caducidad",{"$f":"IF('lista botiquin Antidotos'!F16=\"\",\"cantidad sin cumplimentar\",\n\nIF(I13=0,\"cantidad exigida\",\n\nIF(I13=1,\"falta1ud\",\n\nIF(I13>1,\"faltanuds\",\n\nIF(I13<0,\"dotación con excedentes\",\"VER\" )))))","v":"cantidad sin cumplimentar"},"cantidad sin cumplimentar","CAG12",2,"envases",0,{"$f":"+'Consulta situacion del botiquin'!F17","v":0},"",12,"S01AA12","TOBRAMICINA","Colirio"]
[{"$f":"IF(+'lista botiquin Antidotos'!A20<>\"\",+'lista botiquin Antidotos'!A20,\"\")","v":"A12AA03"},{"$f":"IF(+'lista botiquin Antidotos'!B20<>\"\",+'lista botiquin Antidotos'!B20,\"\")","v":"GLUCONATO DE CALCIO 2%"},{"$f":"IF(+'lista botiquin Antidotos'!C20<>\"\",+'lista botiquin Antidotos'!C20,\"\")","v":"Crema de 25 g."},{"$f":"IF(+'lista botiquin Antidotos'!D20<>\"\",+'lista botiquin Antidotos'!D20,\"\")","v":5},{"$f":"IF(+'lista botiquin Antidotos'!E20<>\"\",+'lista botiquin Antidotos'!E20,\"\")","v":"envases"},{"$f":"+'lista botiquin Antidotos'!F20","v":0},{"$f":"IF(+'lista botiquin Antidotos'!G20<>\"\",+'lista botiquin Antidotos'!G20,\"\")","v":""},{"$f":"IF(+G14=\"\",Sit!$B$1,IF(TODAY()>=Ghost!G14,+Sit!$B$2,IF(TODAY()>=Ghost!G14-30,Sit!$B$3,Sit!$B$4)))","v":"sin fecha de caducidad"},5,"cantidad sin cumplimentar  --> sin fecha de caducidad",{"$f":"IF('lista botiquin Antidotos'!F20=\"\",\"cantidad sin cumplimentar\",\n\nIF(I14=0,\"cantidad exigida\",\n\nIF(I14=1,\"falta1ud\",\n\nIF(I14>1,\"faltanuds\",\n\nIF(I14<0,\"dotación con excedentes\",\"VER\" )))))","v":"cantidad sin cumplimentar"},"cantidad sin cumplimentar","CAE01",5,"envases",0,{"$f":"+'Consulta situacion del botiquin'!F21","v":0},"",13,"A12AA03","GLUCONATO DE CALCIO 2%","Crema de 25 g."]
[{"$f":"IF(+'lista botiquin Antidotos'!A21<>\"\",+'lista botiquin Antidotos'!A21,\"\")","v":""},{"$f":"IF(+'lista botiquin Antidotos'!B21<>\"\",+'lista botiquin Antidotos'!B21,\"\")","v":"AZUL DE METILENO al 1%"},{"$f":"IF(+'lista botiquin Antidotos'!C21<>\"\",+'lista botiquin Antidotos'!C21,\"\")","v":"Ampollas bebibles de 10 ml."},{"$f":"IF(+'lista botiquin Antidotos'!D21<>\"\",+'lista botiquin Antidotos'!D21,\"\")","v":15},{"$f":"IF(+'lista botiquin Antidotos'!E21<>\"\",+'lista botiquin Antidotos'!E21,\"\")","v":"ampollas"},{"$f":"+'lista botiquin Antidotos'!F21","v":0},{"$f":"IF(+'lista botiquin Antidotos'!G21<>\"\",+'lista botiquin Antidotos'!G21,\"\")","v":""},{"$f":"IF(+G15=\"\",Sit!$B$1,IF(TODAY()>=Ghost!G15,+Sit!$B$2,IF(TODAY()>=Ghost!G15-30,Sit!$B$3,Sit!$B$4)))","v":"sin fecha de caducidad"},15,"cantidad sin cumplimentar  --> sin fecha de caducidad",{"$f":"IF('lista botiquin Antidotos'!F21=\"\",\"cantidad sin cumplimentar\",\n\nIF(I15=0,\"cantidad exigida\",\n\nIF(I15=1,\"falta1ud\",\n\nIF(I15>1,\"faltanuds\",\n\nIF(I15<0,\"dotación con excedentes\",\"VER\" )))))","v":"cantidad sin cumplimentar"},{"$f":"IF(AND(K15=\"falta1ud\",F15=0), CONCATENATE(\"sin existencias /\"&\" falta \"&+I15& \" unidad\"),\nIF(AND(K15=\"falta1ud\",F15=1), CONCATENATE(\"queda \"&+F15&\" unidad /\"&\" falta \"&+I15& \" unidad\"),\nIF(AND(K15=\"falta1ud\",F15>1), CONCATENATE(\"quedan \"&+F15&\" unidades /\"&\" falta \"&+I15& \" unidad\"),\nIF(AND(K15=\"faltanuds\",F15=0),CONCATENATE(\"sin existencias /\"&\" faltan \"&+I15& \" unidades\"),\nIF(AND(K15=\"faltanuds\",F15=1),CONCATENATE(\"queda \"&+F15&\" unidad /\"&\" faltan \"&+I15& \" unidades\"),\nIF(AND(K15=\"faltanuds\",F15>1),CONCATENATE(\"quedan \"&+F15&\" unidades /\"&\" faltan \"&+I15& \" unidades\"),\n+K15))))))","v":"cantidad sin cumplimentar"},"CAE02",15,"ampollas",0,{"$f":"+'Consulta situacion del botiquin'!F22","v":0},"",14,"","AZUL DE METILENO al 1%","Ampollas bebibles de 10 ml."]
[{"$f":"IF(+'lista botiquin Antidotos'!A22<>\"\",+'lista botiquin Antidotos'!A22,\"\")","v":""},{"$f":"IF(+'lista botiquin Antidotos'!B22<>\"\",+'lista botiquin Antidotos'!B22,\"\")","v":"ALCOHOL ETÍLICO al 10%"},{"$f":"IF(+'lista botiquin Antidotos'!C22<>\"\",+'lista botiquin Antidotos'!C22,\"\")","v":"Solución de 500 ml."},{"$f":"IF(+'lista botiquin Antidotos'!D22<>\"\",+'lista botiquin Antidotos'!D22,\"\")","v":2},{"$f":"IF(+'lista botiquin Antidotos'!E22<>\"\",+'lista botiquin Antidotos'!E22,\"\")","v":"envases"},{"$f":"+'lista botiquin Antidotos'!F22","v":0},{"$f":"IF(+'lista botiquin Antidotos'!G22<>\"\",+'lista botiquin Antidotos'!G22,\"\")","v":""},{"$f":"IF(+G16=\"\",Sit!$B$1,IF(TODAY()>=Ghost!G16,+Sit!$B$2,IF(TODAY()>=Ghost!G16-30,Sit!$B$3,Sit!$B$4)))","v":"sin fecha de caducidad"},2,"cantidad sin cumplimentar  --> sin fecha de caducidad",{"$f":"IF('lista botiquin Antidotos'!F22=\"\",\"cantidad sin cumplimentar\",\n\nIF(I16=0,\"cantidad exigida\",\n\nIF(I16=1,\"falta1ud\",\n\nIF(I16>1,\"faltanuds\",\n\nIF(I16<0,\"dotación con excedentes\",\"VER\" )))))","v":"cantidad sin cumplimentar"},"cantidad sin cumplimentar","CAE03",2,"envases",0,{"$f":"+'Consulta situacion del botiquin'!F23","v":0},"",15,"","ALCOHOL ETÍLICO al 10%","Solución de 500 ml."]
[{"$f":"IF(+'lista botiquin Antidotos'!A23<>\"\",+'lista botiquin Antidotos'!A23,\"\")","v":""},{"$f":"IF(+'lista botiquin Antidotos'!B23<>\"\",+'lista botiquin Antidotos'!B23,\"\")","v":"SULFATO DE ATROPINA"},{"$f":"IF(+'lista botiquin Antidotos'!C23<>\"\",+'lista botiquin Antidotos'!C23,\"\")","v":"Ampollas 1 mg. 10 ampollas"},{"$f":"IF(+'lista botiquin Antidotos'!D23<>\"\",+'lista botiquin Antidotos'!D23,\"\")","v":1},{"$f":"IF(+'lista botiquin Antidotos'!E23<>\"\",+'lista botiquin Antidotos'!E23,\"\")","v":"envase"},{"$f":"+'lista botiquin Antidotos'!F23","v":0},{"$f":"IF(+'lista botiquin Antidotos'!G23<>\"\",+'lista botiquin Antidotos'!G23,\"\")","v":""},{"$f":"IF(+G17=\"\",Sit!$B$1,IF(TODAY()>=Ghost!G17,+Sit!$B$2,IF(TODAY()>=Ghost!G17-30,Sit!$B$3,Sit!$B$4)))","v":"sin fecha de caducidad"},1,"cantidad sin cumplimentar  --> sin fecha de caducidad",{"$f":"IF('lista botiquin Antidotos'!F23=\"\",\"cantidad sin cumplimentar\",\n\nIF(I17=0,\"cantidad exigida\",\n\nIF(I17=1,\"falta1ud\",\n\nIF(I17>1,\"faltanuds\",\n\nIF(I17<0,\"dotación con excedentes\",\"VER\" )))))","v":"cantidad sin cumplimentar"},"cantidad sin cumplimentar","CAE04",1,"envase",0,{"$f":"+'Consulta situacion del botiquin'!F24","v":0},"",16,"","SULFATO DE ATROPINA","Ampollas 1 mg. 10 ampollas"]

{"sheet":"Sit","index":5,"n_rows":4,"n_cols":5,"rows_kept":4,"cut":false,"hidden":true,"merged":[]}
[null,"sin fecha de caducidad",null,null,""]
[null,"CADUCADO"]
[null,"PROXIMO A CADUCAR"]
[null,"EN FECHA"]